bitfinex/quotes_ETHUSD_20251117
["timestamp","ask_amount","ask_price","bid_price","bid_amount"]
[1763375261654,0.646,3208.1,3207.4,0.001]
[1763375264354,0.646,3208.1,3207.5,0.001]
[1763375267781,4.38750279,3208.1,3207.5,0.001]
[1763375269674,0.646,3208.1,3207.5,0.001]
[1763375269874,4.38750279,3208.1,3207.5,0.001]
[1763375270074,4.82625307,3208.1,3207.5,0.001]
[1763375274931,0.4922,3208.4,3207.5,0.481]
[1763375275133,0.452,3208.1,3207.5,0.481]
[1763375275441,0.452,3208.1,3207.5,0.001]
[1763375275611,0.9442,3208.1,3207.5,0.001]
[1763375276333,0.9434,3208.1,3207.5,0.001]
[1763375281233,0.4512,3208.1,3207.5,0.001]
[1763375281631,0.9434,3208.1,3207.5,0.001]
[1763375282173,1.41209028,3208.1,3207.5,0.001]
[1763375282464,5.15359307,3208.1,3207.5,0.001]
[1763375282668,0.91989028,3208.1,3207.5,0.001]
[1763375282873,0.9434,3208.1,3207.5,0.001]
[1763375284836,5.09040679,3208.1,3207.5,0.001]
[1763375285036,7.88850958,3207.9,3207.5,0.001]
[1763375285235,4.79500679,3207.7,3207.5,0.001]
[1763375285452,5.76035138,3207.7,3207.5,0.001]
[1763375285646,6.25255138,3207.7,3207.5,0.001]
[1763375286088,9.99405417,3207.7,3207.5,0.001]
[1763375287968,9.99405417,3207.7,3207.4,0.001]
[1763375287969,2.2094448,3207.6,3207.4,0.001]
[1763375288167,7.86435094,3207.5,3207.4,0.001]
[1763375288369,8.35655094,3207.5,3207.4,0.001]
[1763375289285,1.5392448,3207.4,3207.3,0.001]
[1763375289490,3.17748939,3207.4,3207.3,0.001]
[1763375290389,6.29535348,3207.4,3207.1,0.006]
[1763375290591,5.72724759,3207.2,3207.1,0.006]
[1763375290770,6.69259218,3207.2,3207.1,0.006]
[1763375290969,7.18479218,3207.2,3207.1,0.006]
[1763375291570,6.05105138,3207.2,3207.1,0.006]
[1763375291771,4.9723227,3207.2,3207.1,0.006]
[1763375291966,5.17743506,3207.2,3207.1,0.006]
[1763375292794,1.43593227,3207.2,3207.1,0.006]
[1763375292979,0.9387,3207.2,3207.1,0.006]
[1763375293583,0.4465,3207.2,3207.1,0.006]
[1763375293807,0.9387,3207.2,3207.1,0.006]
[1763375295799,0.4465,3207.2,3207.1,0.006]
[1763375295999,0.4922,3207.6,3207.1,0.5001]
[1763375296309,0.4922,3207.5,3207.1,0.006]
[1763375296880,0.452,3207.2,3207.1,0.006]
[1763375297309,0.9442,3207.2,3207.1,0.006]
[1763375298310,0.452,3207.2,3207.1,0.006]
[1763375298814,0.9442,3207.2,3207.1,0.006]
[1763375299416,0.9434,3207.2,3207.1,0.006]
[1763375305821,1.348904,3207.2,3207.1,0.006]
[1763375306031,2.06314883,3207.2,3207.1,0.006]
[1763375308342,2.35478665,3207.2,3207.1,0.006]
[1763375308942,2.35478665,3207.2,3207.0,0.001]
[1763375308943,0.405504,3207.1,3207.0,0.001]
[1763375309292,2.00500234,3207.1,3207.0,0.001]
[1763375309608,3.2401183,3207.1,3207.0,0.001]
[1763375309941,3.72971852,3207.1,3207.0,0.001]
[1763375310158,3.2401183,3207.1,3207.0,0.001]
[1763375310770,3.36516147,3207.1,3207.0,0.001]
[1763375311299,6.48324322,3207.1,3207.0,0.001]
[1763375311471,0.405504,3206.9,3206.7,0.001]
[1763375311778,7.0397492,3206.8,3206.7,0.001]
[1763375311978,10.83008317,3206.8,3206.7,0.001]
[1763375312179,11.41153377,3206.8,3206.7,0.001]
[1763375312394,13.275277,3206.8,3206.7,0.001]
[1763375312897,0.405504,3206.7,3206.4,0.001]
[1763375313087,5.48512385,3206.5,3206.4,0.001]
[1763375313288,6.44872219,3206.5,3206.4,0.001]
[1763375313466,6.90512219,3206.5,3206.4,0.001]
[1763375313666,7.59563441,3206.5,3206.4,0.001]
[1763375314277,7.59563441,3206.5,3205.1,0.005]
[1763375314278,1.5392448,3206.4,3205.1,0.005]
[1763375314491,9.5151029,3206.2,3205.1,0.005]
[1763375314808,6.73092219,3206.2,3205.1,0.005]
[1763375314971,7.18732219,3206.2,3205.1,0.005]
[1763375315174,7.90605441,3206.2,3205.1,0.005]
[1763375315375,11.65383346,3206.2,3205.1,0.005]
[1763375316028,7.90605441,3206.2,3205.1,0.005]
[1763375316211,8.52385441,3206.2,3205.1,0.005]
[1763375316882,9.32353335,3206.2,3205.1,0.005]
[1763375317695,9.32353335,3206.2,3206.0,0.001]
[1763375322430,1.5392448,3206.1,3205.7,0.001]
[1763375322613,0.405504,3205.7,3205.4,0.001]
[1763375322791,0.888904,3205.5,3205.4,0.001]
[1763375323123,0.405504,3205.4,3205.1,0.005]
[1763375323451,6.28333749,3205.2,3205.1,0.005]
[1763375323737,7.91426773,3205.2,3205.1,0.005]
[1763375323949,8.37066773,3205.2,3205.1,0.005]
[1763375324244,8.49578326,3205.2,3205.1,0.005]
[1763375324417,7.82537499,3205.2,3205.1,0.005]
[1763375324992,11.61478281,3205.2,3205.1,0.005]
[1763375325189,4.95339669,3204.6,3204.1,0.006]
[1763375325392,5.43399669,3204.6,3204.1,0.006]
[1763375325631,5.89039669,3204.6,3204.1,0.006]
[1763375325838,6.0155224,3204.6,3204.1,0.006]
[1763375326808,1.46762971,3204.6,3204.1,0.006]
[1763375327019,1.63262268,3204.6,3204.1,0.006]
[1763375327416,1.17622268,3204.6,3204.1,0.1833]
[1763375327616,1.63262268,3204.6,3204.1,0.1833]
[1763375327820,1.63262268,3204.6,3204.1,0.006]
[1763375330198,1.17622268,3204.6,3204.1,0.006]
[1763375330397,1.63262268,3204.6,3204.1,0.006]
[1763375334441,2.76636348,3204.6,3204.1,0.006]
[1763375334928,2.30996348,3204.6,3204.1,0.1833]
[1763375335511,2.79666348,3204.6,3204.1,0.1833]
[1763375336923,6.54807167,3204.6,3204.1,0.1833]
[1763375337140,6.42294596,3204.6,3204.1,0.1833]
[1763375337449,6.71357504,3204.6,3204.1,0.006]
[1763375338425,7.38353818,3204.6,3204.1,0.006]
[1763375339305,13.79105244,3204.6,3204.1,0.006]
[1763375339540,1.5392448,3204.5,3204.1,0.006]
[1763375339740,4.32941219,3204.3,3204.1,0.006]
[1763375340227,6.24075328,3204.3,3204.1,0.006]
[1763375340559,1.1337408,3204.2,3204.1,0.006]
[1763375340720,1.5392448,3203.8,3202.8,0.1403]
[1763375340922,0.860604,3203.2,3202.5,0.1403]
[1763375341231,1.32180522,3203.2,3202.5,0.1403]
[1763375341540,1.32180522,3203.2,3202.5,0.6202]
[1763375341742,1.32180522,3203.2,3202.6,0.4799]
[1763375341743,4.61201219,3203.2,3202.6,0.4799]
[1763375342242,4.15691219,3203.2,3203.1,0.4754]
[1763375343455,1.5392448,3203.1,3202.2,0.1403]
[1763375343754,1.5392448,3203.1,3201.1,0.005]
[1763375343755,0.858204,3202.2,3201.4,0.4799]
[1763375343964,2.38880091,3202.2,3201.2,0.1682]
[1763375344138,0.405504,3201.4,3201.2,0.1682]
[1763375344304,0.405504,3201.4,3201.3,0.4704]
[1763375344950,1.5392448,3201.7,3201.3,0.4704]
[1763375345322,1.5392448,3201.7,3201.1,0.005]
[1763375345323,2.0259448,3201.7,3201.1,0.005]
[1763375345533,2.0251448,3201.7,3201.1,0.005]
[1763375345733,0.405504,3201.5,3201.1,0.005]
[1763375346264,0.405504,3201.5,3201.4,0.4704]
[1763375346750,0.405504,3201.5,3201.1,0.005]
[1763375346751,0.860604,3201.5,3201.1,0.005]
[1763375347244,0.860604,3201.2,3201.1,0.005]
[1763375347616,1.347304,3201.2,3201.1,0.005]
[1763375347948,3.3916822,3201.2,3201.1,0.005]
[1763375348105,4.05767544,3201.2,3201.1,0.005]
[1763375348306,3.3916822,3201.2,3201.1,0.005]
[1763375348944,4.05692728,3201.2,3201.1,0.005]
[1763375349708,7.18075584,3201.2,3201.1,0.005]
[1763375350159,4.05692728,3201.2,3201.1,0.005]
[1763375350310,3.3916822,3201.2,3201.1,0.005]
[1763375350746,3.39553017,3201.2,3201.1,0.005]
[1763375350948,4.86836729,3201.8,3201.1,0.6527]
[1763375351244,0.405504,3201.6,3201.1,0.005]
[1763375351452,0.4867,3201.7,3201.1,0.005]
[1763375351949,0.4551,3201.2,3201.1,0.005]
[1763375352144,0.4867,3201.7,3201.1,0.005]
[1763375352447,0.405504,3201.6,3201.1,0.005]
[1763375352648,0.405504,3201.6,3201.1,0.1823]
[1763375353043,0.405504,3201.7,3201.1,0.1823]
[1763375353213,0.405504,3201.5,3201.1,0.005]
[1763375353412,0.405504,3201.8,3201.1,0.1823]
[1763375353608,0.20259448,3201.7,3201.1,0.1823]
[1763375354005,0.405504,3201.5,3201.1,0.1823]
[1763375354456,0.405504,3201.5,3201.4,0.4704]
[1763375354816,0.860604,3201.5,3201.1,0.005]
[1763375355019,0.405504,3201.5,3201.1,0.1823]
[1763375355463,0.20459448,3201.7,3201.4,0.4704]
[1763375355664,0.20459448,3201.7,3201.6,0.4704]
[1763375355840,0.20459448,3201.7,3201.2,0.4799]
[1763375356041,0.20459448,3201.7,3199.9,0.43828808]
[1763375357448,0.405504,3201.6,3199.9,0.43828808]
[1763375358736,0.405504,3201.3,3199.9,0.43828808]
[1763375359820,0.405504,3201.3,3199.9,0.06527145]
[1763375360449,0.002,3201.7,3200.0,0.37301663]
[1763375360648,0.002,3201.7,3200.1,0.46971243]
[1763375360835,0.002,3201.7,3200.1,0.84272906]
[1763375361352,0.002,3201.7,3200.1,1.97646986]
[1763375361740,0.002,3201.7,3200.1,0.84272906]
[1763375361923,0.002,3201.7,3200.1,0.37301663]
[1763375362251,0.002,3201.7,3200.2,1.1337408]
[1763375362462,0.002,3201.7,3200.1,0.37301663]
[1763375362754,0.002,3201.7,3200.2,1.1337408]
[1763375363657,0.002,3201.7,3200.2,3.12479781]
[1763375363813,0.002,3201.7,3200.3,0.46315552]
[1763375364019,0.002,3201.7,3200.4,0.03124609]
[1763375364251,0.002,3201.7,3200.4,0.37301663]
[1763375365347,0.002,3201.7,3200.3,0.46315552]
[1763375365348,0.002,3201.7,3200.1,1.1337408]
[1763375365749,0.002,3201.7,3200.1,4.25862004]
[1763375366571,0.002,3201.7,3200.2,0.03124804]
[1763375366771,0.002,3201.7,3200.6,1.1337408]
[1763375367383,0.002,3201.7,3200.2,0.37301663]
[1763375367554,0.002,3201.7,3200.3,1.1337408]
[1763375368478,0.0012,3201.7,3200.3,1.1337408]
[1763375368680,0.0012,3201.7,3200.4,0.42585335]
[1763375369559,0.0012,3201.7,3200.2,0.03124804]
[1763375370484,0.0012,3201.7,3200.5,1.1337408]
[1763375370682,0.0012,3201.7,3200.6,0.03124414]
[1763375371391,0.0012,3201.7,3200.5,4.25822825]
[1763375372461,0.0012,3201.7,3200.5,1.1337408]
[1763375372666,0.0012,3201.7,3200.6,0.91267043]
[1763375374074,0.0012,3201.7,3200.3,1.1337408]
[1763375375058,0.0012,3201.7,3200.1,4.25864314]
[1763375376392,0.0012,3201.7,3200.1,7.38354548]
[1763375378698,0.0012,3201.7,3200.1,4.25864314]
[1763375378865,0.0012,3201.7,3200.1,7.38354548]
[1763375379223,0.0012,3201.7,3200.1,4.25864314]
[1763375379363,0.488,3201.6,3200.1,4.25862903]
[1763375379560,0.0012,3201.7,3200.1,7.41478039]
[1763375379778,0.0012,3201.7,3200.1,7.38353137]
[1763375380879,0.0012,3201.7,3200.1,11.24353137]
[1763375382285,0.0012,3201.7,3200.2,0.03124804]
[1763375382687,0.0012,3201.7,3200.1,11.24353137]
[1763375384912,0.0012,3201.7,3200.7,1.1337408]
[1763375386497,0.488,3201.6,3200.7,1.1337408]
[1763375386814,0.488,3201.6,3200.9,1.1337408]
[1763375387724,0.0012,3201.7,3201.1,1.1337408]
[1763375389994,0.4892,3201.7,3201.1,1.1337408]
[1763375391598,0.4884,3201.7,3201.1,1.1337408]
[1763375393327,0.4884,3201.7,3200.9,1.1337408]
[1763375395342,0.0004,3201.7,3201.1,1.1337408]
[1763375395541,0.0004,3201.7,3201.1,1.62275614]
[1763375396140,0.4999,3201.7,3201.1,1.62275614]
[1763375396532,0.4999,3201.7,3201.1,0.48901534]
[1763375396721,0.4999,3201.7,3201.0,1.1337408]
[1763375396926,0.4999,3201.7,3200.8,1.1337408]
[1763375397313,0.4999,3201.7,3200.6,3.75641256]
[1763375397655,0.4999,3201.7,3200.7,1.1337408]
[1763375397854,0.4999,3201.7,3200.8,0.48901534]
[1763375398057,0.4999,3201.7,3200.7,1.1337408]
[1763375398058,0.405504,3201.6,3200.7,1.1337408]
[1763375398529,0.4995,3201.5,3200.7,1.1337408]
[1763375400250,0.0004,3201.7,3200.9,1.1337408]
[1763375400554,0.4995,3201.6,3200.9,1.1337408]
[1763375400849,0.4995,3201.6,3200.9,1.62275614]
[1763375401550,0.4583,3201.0,3200.4,3.75641256]
[1763375401767,0.4583,3201.0,3200.5,1.1337408]
[1763375402055,0.0004,3201.7,3200.5,1.1337408]
[1763375402056,0.4995,3201.3,3200.5,1.1337408]
[1763375402252,0.4999,3201.7,3200.9,1.1337408]
[1763375402482,0.0004,3201.7,3200.9,1.1337408]
[1763375402759,0.4999,3201.7,3200.9,1.1337408]
[1763375404537,0.4999,3201.7,3201.2,3.75641256]
[1763375404538,0.0004,3201.7,3201.2,3.75641256]
[1763375405455,0.4999,3201.7,3201.0,3.75641256]
[1763375405822,0.0004,3201.7,3201.0,3.75641256]
[1763375406041,0.0004,3201.7,3201.0,4.13205382]
[1763375406254,0.0004,3201.7,3201.4,3.75641256]
[1763375407760,0.0004,3201.7,3201.6,3.75641256]
[1763375408360,0.4587,3201.7,3201.3,1.1337408]
[1763375408540,0.9582,3201.7,3201.2,1.1337408]
[1763375408735,0.9582,3201.7,3201.0,0.001]
[1763375408736,0.0004,3201.7,3201.4,1.1337408]
[1763375409479,0.4583,3201.5,3201.2,1.1337408]
[1763375409629,0.4583,3201.4,3201.0,0.001]
[1763375410174,0.4995,3201.3,3201.0,0.001]
[1763375410469,0.0004,3201.7,3201.0,0.001]
[1763375410668,0.4995,3201.6,3201.0,1.1347408]
[1763375410859,0.0004,3201.7,3201.0,1.73723022]
[1763375411055,0.4999,3201.7,3201.0,1.73723022]
[1763375411256,0.4999,3201.7,3201.0,0.60348942]
[1763375411459,0.4999,3201.7,3201.0,0.001]
[1763375411967,0.4583,3201.1,3201.0,0.001]
[1763375412368,0.4995,3201.4,3201.0,0.001]
[1763375413077,0.0004,3201.7,3201.2,1.1337408]
[1763375413275,0.0004,3201.7,3201.5,3.75641256]
[1763375413637,0.0004,3201.7,3201.5,4.13205382]
[1763375413978,0.0004,3201.7,3201.5,0.37564126]
[1763375414151,0.9578,3201.6,3201.4,1.1337408]
[1763375414479,0.4583,3201.6,3201.2,1.1337408]
[1763375414638,0.4575,3201.6,3201.2,1.1337408]
[1763375415739,0.4995,3201.5,3201.0,1.1347408]
[1763375415971,0.4995,3201.5,3201.1,0.48911534]
[1763375416174,0.4583,3201.1,3200.8,1.1337408]
[1763375416334,0.4995,3201.5,3200.8,1.1337408]
[1763375416540,0.4995,3201.5,3200.9,3.75641256]
[1763375416736,0.4995,3201.5,3201.0,1.1337408]
[1763375418084,0.4995,3201.5,3200.8,1.1337408]
[1763375419187,0.4995,3201.5,3200.5,3.75641256]
[1763375419188,0.4763,3200.9,3200.5,3.75641256]
[1763375419486,3.75641256,3201.4,3200.4,0.001]
[1763375419789,0.1931,3200.9,3200.4,0.001]
[1763375420299,0.6738,3200.9,3200.4,0.001]
[1763375421407,0.4807,3200.8,3200.4,0.001]
[1763375423057,0.4659,3200.5,3200.4,0.001]
[1763375423583,0.9388,3200.5,3200.4,0.001]
[1763375425594,1.344304,3200.5,3200.4,0.001]
[1763375426182,6.19549346,3200.5,3199.9,0.001]
[1763375426383,0.405504,3199.1,3198.1,0.005]
[1763375426611,1.6108756,3199.1,3198.1,0.005]
[1763375426796,0.4729,3199.0,3198.1,0.005]
[1763375427174,0.1917,3198.9,3198.1,0.005]
[1763375427371,0.4729,3198.8,3198.1,0.005]
[1763375427680,0.4659,3198.2,3198.1,0.005]
[1763375428774,0.4729,3198.4,3198.1,0.005]
[1763375428974,0.4729,3198.8,3198.1,0.005]
[1763375429175,0.1917,3198.9,3198.1,0.005]
[1763375429405,0.6602,3199.2,3198.1,0.005]
[1763375429591,0.4729,3199.1,3198.1,0.57479045]
[1763375429797,0.4729,3199.1,3198.1,0.005]
[1763375430411,0.4659,3198.2,3198.1,0.005]
[1763375430779,0.9388,3198.2,3198.1,0.005]
[1763375431311,0.4659,3198.2,3198.1,0.005]
[1763375431607,0.9388,3198.2,3198.1,0.005]
[1763375431806,0.1917,3198.3,3198.1,0.005]
[1763375432114,0.4659,3198.2,3198.1,0.005]
[1763375432615,0.9388,3198.2,3198.1,0.005]
[1763375432973,0.1917,3198.3,3198.1,0.005]
[1763375432974,0.1917,3198.7,3198.1,0.005]
[1763375433174,0.4729,3198.9,3198.1,0.005]
[1763375433375,0.6602,3199.2,3198.1,0.005]
[1763375434285,0.1873,3199.2,3198.1,0.005]
[1763375434484,0.4729,3199.1,3198.1,0.005]
[1763375436313,0.6602,3199.2,3198.1,0.005]
[1763375436620,0.1917,3199.4,3198.2,1.1337408]
[1763375436912,0.4729,3199.3,3198.1,0.005]
[1763375437697,0.4721,3199.3,3198.1,0.005]
[1763375439780,0.1917,3199.4,3198.1,0.005]
[1763375440005,0.4729,3199.3,3198.1,0.005]
[1763375444953,0.4729,3199.3,3198.1,0.43157921]
[1763375445163,0.4749,3199.3,3198.1,0.005]
[1763375447850,0.405504,3199.2,3198.1,0.005]
[1763375448052,0.6576,3198.2,3198.1,0.005]
[1763375449062,0.1917,3198.5,3198.1,0.005]
[1763375449567,0.6646,3198.5,3198.1,0.005]
[1763375449931,0.1917,3198.9,3198.1,0.005]
[1763375451434,0.002,3199.3,3198.1,0.005]
[1763375451646,0.4913,3199.3,3198.1,0.005]
[1763375455242,0.29234718,3199.2,3198.1,0.005]
[1763375455540,0.29234718,3199.1,3198.1,0.005]
[1763375455741,0.4893,3199.1,3198.1,0.005]
[1763375459047,0.407504,3199.3,3198.1,0.005]
[1763375459252,0.78179844,3199.2,3198.1,0.005]
[1763375459453,0.29249844,3199.1,3198.1,0.005]
[1763375459652,0.4893,3199.2,3198.1,0.005]
[1763375459849,0.2924985,3199.1,3198.1,0.005]
[1763375460053,0.4893,3199.2,3198.1,0.005]
[1763375460266,0.29249883,3199.1,3198.2,0.03126758]
[1763375460542,0.4893,3199.1,3198.2,0.03126758]
[1763375460737,0.002,3199.3,3198.1,0.005]
[1763375461077,0.002,3199.3,3198.1,1.1387408]
[1763375461272,0.002,3199.3,3198.2,0.46106346]
[1763375461472,0.002,3199.3,3198.1,0.03626856]
[1763375461675,0.002,3199.3,3198.1,0.005]
[1763375462775,0.4893,3199.2,3198.1,0.005]
[1763375463374,0.29269132,3199.1,3198.1,0.005]
[1763375463682,0.4835,3198.2,3198.1,0.005]
[1763375463982,0.002,3199.3,3198.1,0.005]
[1763375463983,1.16375027,3199.1,3198.1,0.005]
[1763375464182,0.407504,3199.3,3198.1,0.005]
[1763375464183,0.1888,3198.5,3198.1,0.005]
[1763375464684,0.6781,3198.5,3198.1,0.005]
[1763375466685,0.4893,3198.4,3198.1,0.005]
[1763375466889,0.4835,3198.2,3198.1,0.005]
[1763375467388,0.9728,3198.2,3198.1,0.005]
[1763375468158,0.4835,3198.2,3198.1,0.005]
[1763375469594,0.9728,3198.2,3198.1,0.005]
[1763375470893,5.14462901,3198.1,3197.1,0.005]
[1763375471059,0.4835,3197.2,3197.1,0.005]
[1763375472896,0.9728,3197.2,3197.1,0.005]
[1763375475679,0.4893,3197.1,3195.7,3.16044684]
[1763375477091,0.405504,3198.1,3195.7,3.16044684]
[1763375477295,0.405504,3197.9,3196.1,4.87781581]
[1763375477489,0.4855,3197.8,3196.2,1.16502795]
[1763375478273,0.4855,3197.8,3196.3,3.12861746]
[1763375478477,0.4855,3197.8,3196.4,1.16502599]
[1763375479711,0.4855,3197.8,3196.4,1.1337408]
[1763375479875,0.4855,3197.8,3196.5,0.42936444]
[1763375480076,0.4855,3197.8,3196.2,1.1337408]
[1763375480284,0.4855,3197.8,3195.9,3.53451304]
[1763375480485,0.4855,3197.8,3196.0,1.1337408]
[1763375480690,0.4855,3197.8,3195.9,3.12900904]
[1763375480691,0.405504,3197.7,3195.9,4.9937408]
[1763375481132,0.405504,3197.5,3195.9,4.9937408]
[1763375481423,0.4855,3197.4,3195.9,4.9937408]
[1763375482393,0.4855,3197.4,3195.9,8.12274386]
[1763375482993,0.4855,3197.4,3195.9,8.12374386]
[1763375483194,0.4855,3197.4,3196.0,0.03128911]
[1763375483399,0.4855,3197.4,3196.1,0.8155033]
[1763375483711,0.4847,3197.4,3196.2,0.03128715]
[1763375483912,0.4847,3197.4,3196.1,0.8155033]
[1763375485286,0.4847,3197.4,3196.1,1.9492441]
[1763375485497,0.4847,3197.4,3196.2,0.4739967]
[1763375485708,0.005,3197.9,3196.2,0.4739967]
[1763375485909,0.469,3197.8,3196.4,1.1337408]
[1763375486725,0.005,3197.9,3196.4,4.26218111]
[1763375486884,0.474,3197.9,3196.4,4.26218111]
[1763375487085,0.474,3197.9,3196.4,7.39070069]
[1763375487285,0.474,3197.9,3196.4,4.26218111]
[1763375487486,0.474,3197.9,3196.5,0.91399969]
[1763375489415,0.405504,3197.8,3195.9,4.26370527]
[1763375489921,0.469,3197.7,3195.9,4.26370527]
[1763375490093,0.469,3197.7,3195.9,7.39271431]
[1763375490296,0.469,3197.7,3196.4,1.1337408]
[1763375490624,0.469,3197.7,3196.4,1.16502599]
[1763375490781,0.469,3197.7,3196.5,0.91713898]
[1763375492616,0.469,3197.7,3196.6,0.03128323]
[1763375492824,0.469,3197.7,3196.5,0.91713898]
[1763375493927,0.469,3197.7,3196.6,0.03128323]
[1763375494520,0.469,3197.7,3196.5,0.91713898]
[1763375494824,0.469,3197.7,3196.6,0.2082165]
[1763375494993,0.46307957,3197.7,3196.6,0.2082165]
[1763375496724,0.005,3197.9,3196.6,0.23949973]
[1763375497091,0.469,3197.8,3196.6,0.2082165]
[1763375497594,0.469,3197.8,3196.6,1.3419573]
[1763375497794,0.005,3197.9,3196.8,4.87781581]
[1763375498319,0.005,3197.9,3196.8,4.90909709]
[1763375498518,0.005,3197.9,3196.9,1.1337408]
[1763375498820,0.005,3197.9,3197.0,0.03127932]
[1763375499124,0.005,3197.9,3197.2,1.1337408]
[1763375499326,0.005,3197.9,3197.3,0.45743392]
[1763375500024,0.005,3197.9,3197.3,0.03127638]
[1763375500231,0.005,3197.9,3197.2,0.03127736]
[1763375501533,0.005,3197.9,3197.2,3.15900427]
[1763375502433,0.005,3197.9,3197.2,0.03127736]
[1763375502632,0.005,3197.9,3197.3,0.03127638]
[1763375503536,0.005,3197.9,3197.0,1.1337408]
[1763375503920,0.005,3197.9,3196.9,4.79422414]
[1763375504096,0.005,3197.9,3196.9,1.66622611]
[1763375504303,0.005,3197.9,3196.5,0.001]
[1763375504304,0.469,3197.8,3196.5,0.001]
[1763375504509,0.469,3197.8,3196.6,1.1337408]
[1763375504923,0.005,3197.9,3196.7,0.03128225]
[1763375505229,0.005,3197.9,3196.8,1.1337408]
[1763375505430,0.005,3197.9,3196.9,0.0312803]
[1763375506738,0.0042,3197.9,3197.0,0.60428369]
[1763375506941,0.0042,3197.9,3197.1,0.03127834]
[1763375507436,0.0042,3197.9,3197.2,1.1337408]
[1763375507734,0.0042,3197.9,3197.3,0.03127638]
[1763375507944,0.0042,3197.9,3197.4,1.1337408]
[1763375508145,0.0042,3197.9,3197.5,0.60115566]
[1763375508804,0.0042,3197.9,3197.3,1.1337408]
[1763375509637,0.0042,3197.9,3197.3,4.26134128]
[1763375510134,0.0042,3197.9,3197.3,1.1337408]
[1763375510903,0.0042,3197.9,3197.3,4.26134942]
[1763375511403,0.0042,3197.9,3197.3,1.1337408]
[1763375511702,0.0042,3197.9,3197.4,0.81214332]
[1763375512443,0.0042,3197.9,3197.6,1.1337408]
[1763375514134,0.0042,3197.9,3197.4,1.94588412]
[1763375514843,0.0042,3197.9,3197.5,4.56648685]
[1763375516464,0.0042,3197.9,3197.6,0.03127345]
[1763375516668,0.0042,3197.9,3197.7,0.47735668]
[1763375517574,0.9028,3197.8,3197.7,0.47735668]
[1763375517736,0.4504,3197.8,3197.1,1.1337408]
[1763375517936,0.4504,3197.8,3197.1,4.2615078]
[1763375518248,0.0042,3197.9,3197.1,1.1337408]
[1763375518765,0.0042,3197.9,3197.7,3.7635747]
[1763375519079,0.0042,3197.9,3197.8,1.1337408]
[1763375519273,0.4524,3197.8,3197.6,3.7635747]
[1763375519479,0.9028,3197.8,3197.6,3.7635747]
[1763375519650,0.4504,3197.7,3197.6,3.7635747]
[1763375520461,0.0042,3197.9,3197.6,3.7635747]
[1763375520665,0.4504,3197.7,3197.6,3.7635747]
[1763375520862,0.4504,3197.7,3197.2,1.1337408]
[1763375521082,0.4504,3197.7,3197.3,0.42615556]
[1763375521282,0.4504,3197.7,3197.1,1.1337408]
[1763375521591,0.4566,3197.9,3197.3,0.001]
[1763375521799,0.0062,3197.9,3197.5,1.1337408]
[1763375522094,0.0062,3197.9,3197.6,0.03127345]
[1763375524139,0.0062,3197.9,3197.5,1.1337408]
[1763375524340,0.0062,3197.9,3197.6,0.57005363]
[1763375524797,0.0062,3197.9,3197.6,0.60132708]
[1763375525994,0.0062,3197.9,3197.6,0.57005363]
[1763375526479,0.0062,3197.9,3197.7,1.1337408]
[1763375527355,0.0062,3197.9,3197.6,0.57005363]
[1763375527553,0.0062,3197.9,3197.7,0.17037944]
[1763375527751,0.0062,3197.9,3197.6,0.57005363]
[1763375528470,0.0062,3197.9,3197.8,6.1060403]
[1763375528654,0.0062,3197.9,3197.8,6.13731179]
[1763375529855,0.0054,3197.9,3197.8,6.13731179]
[1763375530148,0.0054,3197.9,3197.8,9.2644617]
[1763375530347,0.0054,3197.9,3197.8,9.95263658]
[1763375530580,0.005,3198.9,3198.6,0.405504]
[1763375530900,0.005,3198.9,3198.8,1.5392448]
[1763375532093,0.005,3198.9,3198.8,4.66541711]
[1763375532394,0.005,3198.9,3198.8,5.23547074]
[1763375532802,0.005,3198.9,3198.8,2.10929843]
[1763375533281,0.005,3198.9,3198.8,5.23547074]
[1763375533450,0.005,3198.9,3198.8,5.26673246]
[1763375534181,0.005,3198.9,3198.8,5.23547074]
[1763375534480,0.005,3198.9,3198.8,4.82996674]
[1763375535064,0.002,3199.3,3199.1,0.05]
[1763375535264,0.002,3199.3,3199.2,5.7005363]
[1763375535469,0.002,3199.7,3199.3,1.1337408]
[1763375535651,0.002,3199.7,3199.6,5.7005363]
[1763375536166,0.002,3199.7,3199.6,8.82592697]
[1763375536657,0.005,3199.9,3199.6,12.7898878]
[1763375536986,0.007,3200.9,3200.0,1.1337408]
[1763375537192,0.007,3200.9,3200.1,0.03124902]
[1763375537388,0.007,3200.9,3200.4,1.1337408]
[1763375537591,0.4823,3200.8,3200.4,1.1337408]
[1763375537800,0.4826,3200.5,3200.4,1.1337408]
[1763375538997,0.9649,3200.5,3200.4,1.1337408]
[1763375540680,0.9649,3200.5,3199.9,5.7005363]
[1763375540881,0.9649,3200.4,3200.0,0.57817951]
[1763375541206,0.4826,3200.1,3200.0,0.57817951]
[1763375541438,0.4826,3200.1,3199.9,5.7005363]
[1763375541610,0.4826,3200.0,3199.9,5.7005363]
[1763375541909,0.4826,3200.0,3199.1,7.69266723]
[1763375542084,0.6657,3199.9,3199.2,1.90300752]
[1763375542280,0.4714,3199.8,3199.2,1.90300752]
[1763375542505,0.4714,3199.8,3199.2,5.02874511]
[1763375542893,0.4714,3199.8,3199.2,1.90300752]
[1763375543206,0.4714,3199.8,3199.2,5.02875884]
[1763375543508,0.4714,3199.8,3199.3,0.52023328]
[1763375544975,0.3114,3199.8,3199.3,0.52023328]
[1763375545190,0.1943,3199.9,3199.3,0.52023328]